Workbook

Sheet موازنة حفل الزفاف
B2: LISHA + DANIEL ربط العقدة
B5: الفئة | C5: "التكلفة المقدرة" | D5: التكلفة الفعلية | E5: نسبة الفرق | F5: الميزانية % | J5: غير مصنّف | K5: التكاليف المقدرة | L5: التكاليف الفعلية | M5: التكلفة المقدرة - قيمة الترتيب | N5: الترتيب | O5: الرقم | P5: مرتّبة
B6: =P6 -> الاستقبال | C6: =VLOOKUP(ملخص_TBL[[#This Row],[الفئة]],TBL_RankingData,2,FALSE) -> ر.س.‏ 14,500 | D6: =IF(VLOOKUP(ملخص_TBL[[#This Row],[الفئة]],TBL_RankingData,3,FALSE)=0,"",VLOOKUP(ملخص_TBL[[#This Row],[الفئة]],TBL_RankingData,3,FALSE)) -> ر.س.‏ 12,800 | E6: =IF(OR(ملخص_TBL[[#This Row],["التكلفة المقدرة"]]="",ملخص_TBL[[#This Row],[التكلفة الفعلية]]=""),"",ملخص_TBL[[#This Row],["التكلفة المقدرة"]]-ملخص_TBL[[#This Row],[التكلفة الفعلية]]) -> ر.س.‏ 1,700 | F6: =ملخص_TBL[[#This Row],["التكلفة المقدرة"]]/SUM(ملخص_TBL["التكلفة المقدرة"]) -> 48.7% | J6: الاستقبال | K6: =TBL_Reception[[#Totals],[مُقدر]] -> 14500 | L6: =TBL_Reception[[#Totals],[الفعلي]] -> 12800 | M6: =K6-O6/100 -> 14499.99 | N6: =_xlfn.RANK.AVG(M6,$M$6:$M$15) -> 1 | O6: 1 | P6: =INDEX(TBL_RankingData,MATCH(O6,$N$6:$N$15,0),1) -> الاستقبال
B7: =P7 -> الملابس | C7: =VLOOKUP(ملخص_TBL[[#This Row],[الفئة]],TBL_RankingData,2,FALSE) -> ر.س.‏ 4,000 | D7: =IF(VLOOKUP(ملخص_TBL[[#This Row],[الفئة]],TBL_RankingData,3,FALSE)=0,"",VLOOKUP(ملخص_TBL[[#This Row],[الفئة]],TBL_RankingData,3,FALSE)) -> ر.س.‏ 2,900 | E7: =IF(OR(ملخص_TBL[[#This Row],["التكلفة المقدرة"]]="",ملخص_TBL[[#This Row],[التكلفة الفعلية]]=""),"",ملخص_TBL[[#This Row],["التكلفة المقدرة"]]-ملخص_TBL[[#This Row],[التكلفة الفعلية]]) -> ر.س.‏ 1,100 | F7: =ملخص_TBL[[#This Row],["التكلفة المقدرة"]]/SUM(ملخص_TBL["التكلفة المقدرة"]) -> 13.4% | J7: الملابس | K7: =TBL_Attire[[#Totals],[المُقدر]] -> 4000 | L7: =TBL_Attire[[#Totals],[الفعلي]] -> 2900 | M7: =K7-O7/100 -> 3999.98 | N7: 2 | O7: 2 | P7: الملابس
B8: الأزهار والزخرفة | C8: =VLOOKUP(ملخص_TBL[[#This Row],[الفئة]],TBL_RankingData,2,FALSE) -> ر.س.‏ 3,000 | D8: =IF(VLOOKUP(ملخص_TBL[[#This Row],[الفئة]],TBL_RankingData,3,FALSE)=0,"",VLOOKUP(ملخص_TBL[[#This Row],[الفئة]],TBL_RankingData,3,FALSE)) ->  | E8: =IF(OR(ملخص_TBL[[#This Row],["التكلفة المقدرة"]]="",ملخص_TBL[[#This Row],[التكلفة الفعلية]]=""),"",ملخص_TBL[[#This Row],["التكلفة المقدرة"]]-ملخص_TBL[[#This Row],[التكلفة الفعلية]]) ->  | F8: =ملخص_TBL[[#This Row],["التكلفة المقدرة"]]/SUM(ملخص_TBL["التكلفة المقدرة"]) -> 10.1% | J8: الأزهار والزخرفة | K8: =TBL_FlowersAndDecor[[#Totals],[المُقدر]] -> 3000 | L8: =TBL_FlowersAndDecor[[#Totals],[الفعلي]] -> 0 | M8: 2999.97 | N8: 3 | O8: 3 | P8: الأزهار والزخرفة
B9: الصور الفوتوغرافية والفيديو | C9: =VLOOKUP(ملخص_TBL[[#This Row],[الفئة]],TBL_RankingData,2,FALSE) -> ر.س.‏ 2,500 | D9: =IF(VLOOKUP(ملخص_TBL[[#This Row],[الفئة]],TBL_RankingData,3,FALSE)=0,"",VLOOKUP(ملخص_TBL[[#This Row],[الفئة]],TBL_RankingData,3,FALSE)) ->  | E9: =IF(OR(ملخص_TBL[[#This Row],["التكلفة المقدرة"]]="",ملخص_TBL[[#This Row],[التكلفة الفعلية]]=""),"",ملخص_TBL[[#This Row],["التكلفة المقدرة"]]-ملخص_TBL[[#This Row],[التكلفة الفعلية]]) ->  | F9: =ملخص_TBL[[#This Row],["التكلفة المقدرة"]]/SUM(ملخص_TBL["التكلفة المقدرة"]) -> 8.4% | J9: الموسيقى | K9: =TBL_Music[[#Totals],[المُقدر]] -> 1800 | L9: =TBL_Music[[#Totals],[الفعلي]] -> 0 | M9: 1799.96 | N9: 5 | O9: 4 | P9: الصور الفوتوغرافية والفيديو
B10: الموسيقى | C10: =VLOOKUP(ملخص_TBL[[#This Row],[الفئة]],TBL_RankingData,2,FALSE) -> ر.س.‏ 1,800 | D10: =IF(VLOOKUP(ملخص_TBL[[#This Row],[الفئة]],TBL_RankingData,3,FALSE)=0,"",VLOOKUP(ملخص_TBL[[#This Row],[الفئة]],TBL_RankingData,3,FALSE)) ->  | E10: =IF(OR(ملخص_TBL[[#This Row],["التكلفة المقدرة"]]="",ملخص_TBL[[#This Row],[التكلفة الفعلية]]=""),"",ملخص_TBL[[#This Row],["التكلفة المقدرة"]]-ملخص_TBL[[#This Row],[التكلفة الفعلية]]) ->  | F10: =ملخص_TBL[[#This Row],["التكلفة المقدرة"]]/SUM(ملخص_TBL["التكلفة المقدرة"]) -> 6.1% | J10: الصور الفوتوغرافية والفيديو | K10: =TBL_PhotographsAndVideo[[#Totals],[المُقدر]] -> 2500 | L10: =TBL_PhotographsAndVideo[[#Totals],[الفعلي]] -> 0 | M10: 2499.95 | N10: 4 | O10: 5 | P10: الموسيقى
B11: هدايا حفل الزواج والهدايا | C11: =VLOOKUP(ملخص_TBL[[#This Row],[الفئة]],TBL_RankingData,2,FALSE) -> ر.س.‏ 1,100 | D11: =IF(VLOOKUP(ملخص_TBL[[#This Row],[الفئة]],TBL_RankingData,3,FALSE)=0,"",VLOOKUP(ملخص_TBL[[#This Row],[الفئة]],TBL_RankingData,3,FALSE)) ->  | E11: =IF(OR(ملخص_TBL[[#This Row],["التكلفة المقدرة"]]="",ملخص_TBL[[#This Row],[التكلفة الفعلية]]=""),"",ملخص_TBL[[#This Row],["التكلفة المقدرة"]]-ملخص_TBL[[#This Row],[التكلفة الفعلية]]) ->  | F11: =ملخص_TBL[[#This Row],["التكلفة المقدرة"]]/SUM(ملخص_TBL["التكلفة المقدرة"]) -> 3.7% | J11: هدايا حفل الزواج والهدايا | K11: =TBL_FavorsAndGifts[[#Totals],[المُقدر]] -> 1100 | L11: =TBL_FavorsAndGifts[[#Totals],[الفعلي]] -> 0 | M11: 1099.94 | N11: 6 | O11: 6 | P11: هدايا حفل الزواج والهدايا
B12: =P12 -> خواتم الزواج | C12: =VLOOKUP(ملخص_TBL[[#This Row],[الفئة]],TBL_RankingData,2,FALSE) -> ر.س.‏ 1,100 | D12: =IF(VLOOKUP(ملخص_TBL[[#This Row],[الفئة]],TBL_RankingData,3,FALSE)=0,"",VLOOKUP(ملخص_TBL[[#This Row],[الفئة]],TBL_RankingData,3,FALSE)) ->  | E12: =IF(OR(ملخص_TBL[[#This Row],["التكلفة المقدرة"]]="",ملخص_TBL[[#This Row],[التكلفة الفعلية]]=""),"",ملخص_TBL[[#This Row],["التكلفة المقدرة"]]-ملخص_TBL[[#This Row],[التكلفة الفعلية]]) ->  | F12: =ملخص_TBL[[#This Row],["التكلفة المقدرة"]]/SUM(ملخص_TBL["التكلفة المقدرة"]) -> 3.7% | J12: الحفل | K12: =TBL_Ceremony[[#Totals],[المُقدر]] -> 800 | L12: =TBL_Ceremony[[#Totals],[الفعلي]] -> 0 | M12: 799.93 | N12: 8 | O12: 7 | P12: خواتم الزواج
B13: الحفل | C13: =VLOOKUP(ملخص_TBL[[#This Row],[الفئة]],TBL_RankingData,2,FALSE) -> ر.س.‏ 800 | D13: =IF(VLOOKUP(ملخص_TBL[[#This Row],[الفئة]],TBL_RankingData,3,FALSE)=0,"",VLOOKUP(ملخص_TBL[[#This Row],[الفئة]],TBL_RankingData,3,FALSE)) ->  | E13: =IF(OR(ملخص_TBL[[#This Row],["التكلفة المقدرة"]]="",ملخص_TBL[[#This Row],[التكلفة الفعلية]]=""),"",ملخص_TBL[[#This Row],["التكلفة المقدرة"]]-ملخص_TBL[[#This Row],[التكلفة الفعلية]]) ->  | F13: =ملخص_TBL[[#This Row],["التكلفة المقدرة"]]/SUM(ملخص_TBL["التكلفة المقدرة"]) -> 2.7% | J13: الخطابات | K13: =TBL_Stationery[[#Totals],[المُقدر]] -> 500 | L13: =TBL_Stationery[[#Totals],[الفعلي]] -> 0 | M13: 499.92 | N13: 9 | O13: 8 | P13: الحفل
B14: الخطابات | C14: =VLOOKUP(ملخص_TBL[[#This Row],[الفئة]],TBL_RankingData,2,FALSE) -> ر.س.‏ 500 | D14: =IF(VLOOKUP(ملخص_TBL[[#This Row],[الفئة]],TBL_RankingData,3,FALSE)=0,"",VLOOKUP(ملخص_TBL[[#This Row],[الفئة]],TBL_RankingData,3,FALSE)) ->  | E14: =IF(OR(ملخص_TBL[[#This Row],["التكلفة المقدرة"]]="",ملخص_TBL[[#This Row],[التكلفة الفعلية]]=""),"",ملخص_TBL[[#This Row],["التكلفة المقدرة"]]-ملخص_TBL[[#This Row],[التكلفة الفعلية]]) ->  | F14: =ملخص_TBL[[#This Row],["التكلفة المقدرة"]]/SUM(ملخص_TBL["التكلفة المقدرة"]) -> 1.7% | J14: خواتم الزواج | K14: =TBL_WeddingRings[[#Totals],[المُقدر]] -> 1100 | L14: =TBL_WeddingRings[[#Totals],[الفعلي]] -> 0 | M14: 1099.91 | N14: 7 | O14: 9 | P14: الخطابات
B15: وسائل النقل | C15: =VLOOKUP(ملخص_TBL[[#This Row],[الفئة]],TBL_RankingData,2,FALSE) -> ر.س.‏ 450 | D15: =IF(VLOOKUP(ملخص_TBL[[#This Row],[الفئة]],TBL_RankingData,3,FALSE)=0,"",VLOOKUP(ملخص_TBL[[#This Row],[الفئة]],TBL_RankingData,3,FALSE)) ->  | E15: =IF(OR(ملخص_TBL[[#This Row],["التكلفة المقدرة"]]="",ملخص_TBL[[#This Row],[التكلفة الفعلية]]=""),"",ملخص_TBL[[#This Row],["التكلفة المقدرة"]]-ملخص_TBL[[#This Row],[التكلفة الفعلية]]) ->  | F15: =ملخص_TBL[[#This Row],["التكلفة المقدرة"]]/SUM(ملخص_TBL["التكلفة المقدرة"]) -> 1.5% | J15: وسائل النقل | K15: =TBL_Transportation[[#Totals],[المُقدر]] -> 450 | L15: =TBL_Transportation[[#Totals],[الفعلي]] -> 0 | M15: 449.9 | N15: 10 | O15: 10 | P15: وسائل النقل
B16: الإجمالي | C16: =SUBTOTAL(109,ملخص_TBL["التكلفة المقدرة"]) -> ر.س.‏ 29,750 | D16: =SUBTOTAL(109,ملخص_TBL[التكلفة الفعلية]) -> ر.س.‏ 15,700 | E16: =ملخص_TBL[[#Totals],["التكلفة المقدرة"]]-ملخص_TBL[[#Totals],[التكلفة الفعلية]] -> ر.س.‏ 14,050 | F16: =SUBTOTAL(109,ملخص_TBL[الميزانية %]) -> 100%

Sheet تفاصيل الموازنة
B2: تفاصيل الموازنة
B4: الاستقبال | C4: مُقدر | D4: الفعلي | E4: نسبة الفرق
B5: مكان الدعوى والإيجارات | C5: ر.س.‏ 8,000.00 | D5: ر.س.‏ 7,800.00 | E5: =IF(OR(TBL_Reception[[#This Row],[مُقدر]]="",TBL_Reception[[#This Row],[الفعلي]]=""),"",TBL_Reception[[#This Row],[مُقدر]]-TBL_Reception[[#This Row],[الفعلي]]) -> ر.س.‏ 200.00
B6: الطعام والخدمة | C6: ر.س.‏ 4,000.00 | D6: ر.س.‏ 4,200.00 | E6: =IF(OR(TBL_Reception[[#This Row],[مُقدر]]="",TBL_Reception[[#This Row],[الفعلي]]=""),"",TBL_Reception[[#This Row],[مُقدر]]-TBL_Reception[[#This Row],[الفعلي]]) -> ر.س.‏ 200.00-
B7: المشروبات | C7: ر.س.‏ 1,000.00 | D7: ر.س.‏ 800.00 | E7: =IF(OR(TBL_Reception[[#This Row],[مُقدر]]="",TBL_Reception[[#This Row],[الفعلي]]=""),"",TBL_Reception[[#This Row],[مُقدر]]-TBL_Reception[[#This Row],[الفعلي]]) -> ر.س.‏ 200.00
B8: الكعكة | C8: ر.س.‏ 1,000.00 | E8: =IF(OR(TBL_Reception[[#This Row],[مُقدر]]="",TBL_Reception[[#This Row],[الفعلي]]=""),"",TBL_Reception[[#This Row],[مُقدر]]-TBL_Reception[[#This Row],[الفعلي]]) -> 
B9: مصاريف متنوعة | C9: ر.س.‏ 500.00 | E9: =IF(OR(TBL_Reception[[#This Row],[مُقدر]]="",TBL_Reception[[#This Row],[الفعلي]]=""),"",TBL_Reception[[#This Row],[مُقدر]]-TBL_Reception[[#This Row],[الفعلي]]) -> 
B10: إجمالي حفل الاستقبال | C10: =SUBTOTAL(109,TBL_Reception[مُقدر]) -> ر.س.‏ 14,500.00 | D10: =SUBTOTAL(109,TBL_Reception[الفعلي]) -> ر.س.‏ 12,800.00 | E10: =TBL_Reception[[#Totals],[مُقدر]]-TBL_Reception[[#Totals],[الفعلي]] -> ر.س.‏ 1,700.00
B13: الملابس | C13: المُقدر | D13: الفعلي | E13: نسبة الفرق
B14: التكس و/أو البدلة و/أو الفساتين | C14: ر.س.‏ 3,000.00 | D14: ر.س.‏ 2,900.00 | E14: =IF(OR(TBL_Attire[[#This Row],[المُقدر]]="",TBL_Attire[[#This Row],[الفعلي]]=""),"",TBL_Attire[[#This Row],[المُقدر]]-TBL_Attire[[#This Row],[الفعلي]]) -> ر.س.‏ 100.00
B15: التعديلات | C15: ر.س.‏ 100.00 | E15: =IF(OR(TBL_Attire[[#This Row],[المُقدر]]="",TBL_Attire[[#This Row],[الفعلي]]=""),"",TBL_Attire[[#This Row],[المُقدر]]-TBL_Attire[[#This Row],[الفعلي]]) -> 
B16: غطاء الرأس والوشاح | C16: ر.س.‏ 200.00 | E16: =IF(OR(TBL_Attire[[#This Row],[المُقدر]]="",TBL_Attire[[#This Row],[الفعلي]]=""),"",TBL_Attire[[#This Row],[المُقدر]]-TBL_Attire[[#This Row],[الفعلي]]) -> 
B17: الملحقات | C17: ر.س.‏ 100.00 | E17: =IF(OR(TBL_Attire[[#This Row],[المُقدر]]="",TBL_Attire[[#This Row],[الفعلي]]=""),"",TBL_Attire[[#This Row],[المُقدر]]-TBL_Attire[[#This Row],[الفعلي]]) -> 
B18: الشعر والتجميل | C18: ر.س.‏ 500.00 | E18: =IF(OR(TBL_Attire[[#This Row],[المُقدر]]="",TBL_Attire[[#This Row],[الفعلي]]=""),"",TBL_Attire[[#This Row],[المُقدر]]-TBL_Attire[[#This Row],[الفعلي]]) -> 
B19: مصاريف متنوعة | C19: ر.س.‏ 100.00 | E19: =IF(OR(TBL_Attire[[#This Row],[المُقدر]]="",TBL_Attire[[#This Row],[الفعلي]]=""),"",TBL_Attire[[#This Row],[المُقدر]]-TBL_Attire[[#This Row],[الفعلي]]) -> 
B20: مجموع ATTIRE | C20: =SUBTOTAL(109,TBL_Attire[المُقدر]) -> ر.س.‏ 4,000.00 | D20: =SUBTOTAL(109,TBL_Attire[الفعلي]) -> ر.س.‏ 2,900.00 | E20: =TBL_Attire[[#Totals],[المُقدر]]-TBL_Attire[[#Totals],[الفعلي]] -> ر.س.‏ 1,100.00
B23: الأزهار والزخرفة | C23: المُقدر | D23: الفعلي | E23: نسبة الفرق
B24: ترتيبات الزهور للحفل | C24: ر.س.‏ 1,000.00 | E24: =IF(OR(TBL_FlowersAndDecor[[#This Row],[المُقدر]]="",TBL_FlowersAndDecor[[#This Row],[الفعلي]]=""),"",TBL_FlowersAndDecor[[#This Row],[المُقدر]]-TBL_FlowersAndDecor[[#This Row],[الفعلي]]) -> 
B25: عصابة من الورد للفتيات الصغيرات وسلة | C25: ر.س.‏ 500.00 | E25: =IF(OR(TBL_FlowersAndDecor[[#This Row],[المُقدر]]="",TBL_FlowersAndDecor[[#This Row],[الفعلي]]=""),"",TBL_FlowersAndDecor[[#This Row],[المُقدر]]-TBL_FlowersAndDecor[[#This Row],[الفعلي]]) -> 
B26: وسادة الخاتم | C26: ر.س.‏ 100.00 | E26: =IF(OR(TBL_FlowersAndDecor[[#This Row],[المُقدر]]="",TBL_FlowersAndDecor[[#This Row],[الفعلي]]=""),"",TBL_FlowersAndDecor[[#This Row],[المُقدر]]-TBL_FlowersAndDecor[[#This Row],[الفعلي]]) -> 
B27: باقات الزهور | C27: ر.س.‏ 500.00 | E27: =IF(OR(TBL_FlowersAndDecor[[#This Row],[المُقدر]]="",TBL_FlowersAndDecor[[#This Row],[الفعلي]]=""),"",TBL_FlowersAndDecor[[#This Row],[المُقدر]]-TBL_FlowersAndDecor[[#This Row],[الفعلي]]) -> 
B28: ورود البذلات | C28: ر.س.‏ 100.00 | E28: =IF(OR(TBL_FlowersAndDecor[[#This Row],[المُقدر]]="",TBL_FlowersAndDecor[[#This Row],[الفعلي]]=""),"",TBL_FlowersAndDecor[[#This Row],[المُقدر]]-TBL_FlowersAndDecor[[#This Row],[الفعلي]]) -> 
B29: الزهور الصغيرة للعروس والأصدقاء | C29: ر.س.‏ 200.00 | E29: =IF(OR(TBL_FlowersAndDecor[[#This Row],[المُقدر]]="",TBL_FlowersAndDecor[[#This Row],[الفعلي]]=""),"",TBL_FlowersAndDecor[[#This Row],[المُقدر]]-TBL_FlowersAndDecor[[#This Row],[الفعلي]]) -> 
B30: زينة قاعة الاستقبال | C30: ر.س.‏ 300.00 | E30: =IF(OR(TBL_FlowersAndDecor[[#This Row],[المُقدر]]="",TBL_FlowersAndDecor[[#This Row],[الفعلي]]=""),"",TBL_FlowersAndDecor[[#This Row],[المُقدر]]-TBL_FlowersAndDecor[[#This Row],[الفعلي]]) -> 
B31: الإضاءة | C31: ر.س.‏ 200.00 | E31: =IF(OR(TBL_FlowersAndDecor[[#This Row],[المُقدر]]="",TBL_FlowersAndDecor[[#This Row],[الفعلي]]=""),"",TBL_FlowersAndDecor[[#This Row],[المُقدر]]-TBL_FlowersAndDecor[[#This Row],[الفعلي]]) -> 
B32: مصاريف متنوعة | C32: ر.س.‏ 100.00 | E32: =IF(OR(TBL_FlowersAndDecor[[#This Row],[المُقدر]]="",TBL_FlowersAndDecor[[#This Row],[الفعلي]]=""),"",TBL_FlowersAndDecor[[#This Row],[المُقدر]]-TBL_FlowersAndDecor[[#This Row],[الفعلي]]) -> 
B33: مجمموع الزهور والديكورات | C33: =SUBTOTAL(109,TBL_FlowersAndDecor[المُقدر]) -> ر.س.‏ 3,000.00 | D33: =SUBTOTAL(109,TBL_FlowersAndDecor[الفعلي]) -> ر.س.‏ 0.00 | E33: =TBL_FlowersAndDecor[[#Totals],[المُقدر]]-TBL_FlowersAndDecor[[#Totals],[الفعلي]] -> ر.س.‏ 3,000.00
B36: الموسيقى | C36: المُقدر | D36: الفعلي | E36: نسبة الفرق
B37: موسيقيون الحفل | C37: ر.س.‏ 700.00 | E37: =IF(OR(TBL_Music[[#This Row],[المُقدر]]="",TBL_Music[[#This Row],[الفعلي]]=""),"",TBL_Music[[#This Row],[المُقدر]]-TBL_Music[[#This Row],[الفعلي]]) -> 
B38: موسيقيون ساعة الكوكتيل | C38: ر.س.‏ 300.00 | E38: =IF(OR(TBL_Music[[#This Row],[المُقدر]]="",TBL_Music[[#This Row],[الفعلي]]=""),"",TBL_Music[[#This Row],[المُقدر]]-TBL_Music[[#This Row],[الفعلي]]) -> 
B39: فرقة الاستقبال أو موسيقى (الديجي) أو الترفيه | C39: ر.س.‏ 200.00 | E39: =IF(OR(TBL_Music[[#This Row],[المُقدر]]="",TBL_Music[[#This Row],[الفعلي]]=""),"",TBL_Music[[#This Row],[المُقدر]]-TBL_Music[[#This Row],[الفعلي]]) -> 
B40: استئجار نظام الصوت أو قاعة الرقص | C40: ر.س.‏ 400.00 | E40: =IF(OR(TBL_Music[[#This Row],[المُقدر]]="",TBL_Music[[#This Row],[الفعلي]]=""),"",TBL_Music[[#This Row],[المُقدر]]-TBL_Music[[#This Row],[الفعلي]]) -> 
B41: مصاريف متنوعة | C41: ر.س.‏ 200.00 | E41: =IF(OR(TBL_Music[[#This Row],[المُقدر]]="",TBL_Music[[#This Row],[الفعلي]]=""),"",TBL_Music[[#This Row],[المُقدر]]-TBL_Music[[#This Row],[الفعلي]]) -> 
B42: إجمالي الموسيقي | C42: =SUBTOTAL(109,TBL_Music[المُقدر]) -> ر.س.‏ 1,800.00 | D42: =SUBTOTAL(109,TBL_Music[الفعلي]) -> ر.س.‏ 0.00 | E42: =TBL_Music[[#Totals],[المُقدر]]-TBL_Music[[#Totals],[الفعلي]] -> ر.س.‏ 1,800.00
B45: التصوير الفوتوغرافي والفيديو | C45: المُقدر | D45: الفعلي | E45: نسبة الفرق
B46: التصوير | C46: ر.س.‏ 1,000.00 | E46: =IF(OR(TBL_PhotographsAndVideo[[#This Row],[المُقدر]]="",TBL_PhotographsAndVideo[[#This Row],[الفعلي]]=""),"",TBL_PhotographsAndVideo[[#This Row],[المُقدر]]-TBL_PhotographsAndVideo[[#This Row],[الفعلي]]) -> 
B47: تصوير الفيديو | C47: ر.س.‏ 800.00 | E47: =IF(OR(TBL_PhotographsAndVideo[[#This Row],[المُقدر]]="",TBL_PhotographsAndVideo[[#This Row],[الفعلي]]=""),"",TBL_PhotographsAndVideo[[#This Row],[المُقدر]]-TBL_PhotographsAndVideo[[#This Row],[الفعلي]]) -> 
B48: مطبوعات وألبومات إضافية | C48: ر.س.‏ 500.00 | E48: =IF(OR(TBL_PhotographsAndVideo[[#This Row],[المُقدر]]="",TBL_PhotographsAndVideo[[#This Row],[الفعلي]]=""),"",TBL_PhotographsAndVideo[[#This Row],[المُقدر]]-TBL_PhotographsAndVideo[[#This Row],[الفعلي]]) -> 
B49: مصاريف متنوعة | C49: ر.س.‏ 200.00 | E49: =IF(OR(TBL_PhotographsAndVideo[[#This Row],[المُقدر]]="",TBL_PhotographsAndVideo[[#This Row],[الفعلي]]=""),"",TBL_PhotographsAndVideo[[#This Row],[المُقدر]]-TBL_PhotographsAndVideo[[#This Row],[الفعلي]]) -> 
B50: إجمالي التصوير والفيديو | C50: =SUBTOTAL(109,TBL_PhotographsAndVideo[المُقدر]) -> ر.س.‏ 2,500.00 | D50: =SUBTOTAL(109,TBL_PhotographsAndVideo[الفعلي]) -> ر.س.‏ 0.00 | E50: =TBL_PhotographsAndVideo[[#Totals],[المُقدر]]-TBL_PhotographsAndVideo[[#Totals],[الفعلي]] -> ر.س.‏ 2,500.00
B53: المنح والهدايا | C53: المُقدر | D53: الفعلي | E53: نسبة الفرق
B54: هدايا الترحيب | C54: ر.س.‏ 700.00 | E54: =IF(OR(TBL_FavorsAndGifts[[#This Row],[المُقدر]]="",TBL_FavorsAndGifts[[#This Row],[الفعلي]]=""),"",TBL_FavorsAndGifts[[#This Row],[المُقدر]]-TBL_FavorsAndGifts[[#This Row],[الفعلي]]) -> 
B55: هدايا الحفلة | C55: ر.س.‏ 200.00 | E55: =IF(OR(TBL_FavorsAndGifts[[#This Row],[المُقدر]]="",TBL_FavorsAndGifts[[#This Row],[الفعلي]]=""),"",TBL_FavorsAndGifts[[#This Row],[المُقدر]]-TBL_FavorsAndGifts[[#This Row],[الفعلي]]) -> 
B56: مصاريف متنوعة | C56: ر.س.‏ 200.00 | E56: =IF(OR(TBL_FavorsAndGifts[[#This Row],[المُقدر]]="",TBL_FavorsAndGifts[[#This Row],[الفعلي]]=""),"",TBL_FavorsAndGifts[[#This Row],[المُقدر]]-TBL_FavorsAndGifts[[#This Row],[الفعلي]]) -> 
B57: إجمالي الهدايا | C57: =SUBTOTAL(109,TBL_FavorsAndGifts[المُقدر]) -> ر.س.‏ 1,100.00 | D57: =SUBTOTAL(109,TBL_FavorsAndGifts[الفعلي]) -> ر.س.‏ 0.00 | E57: =TBL_FavorsAndGifts[[#Totals],[المُقدر]]-TBL_FavorsAndGifts[[#Totals],[الفعلي]] -> ر.س.‏ 1,100.00
B60: الحفل | C60: المُقدر | D60: الفعلي | E60: نسبة الفرق
B61: رسوم الموقع | C61: ر.س.‏ 500.00 | E61: =IF(OR(TBL_Ceremony[[#This Row],[المُقدر]]="",TBL_Ceremony[[#This Row],[الفعلي]]=""),"",TBL_Ceremony[[#This Row],[المُقدر]]-TBL_Ceremony[[#This Row],[الفعلي]]) -> 
B62: رسوم الشيخ/الكاهن أو التبرع للجامع/الكنيسة | C62: ر.س.‏ 200.00 | E62: =IF(OR(TBL_Ceremony[[#This Row],[المُقدر]]="",TBL_Ceremony[[#This Row],[الفعلي]]=""),"",TBL_Ceremony[[#This Row],[المُقدر]]-TBL_Ceremony[[#This Row],[الفعلي]]) -> 
B63: مصاريف متنوعة | C63: ر.س.‏ 100.00 | E63: =IF(OR(TBL_Ceremony[[#This Row],[المُقدر]]="",TBL_Ceremony[[#This Row],[الفعلي]]=""),"",TBL_Ceremony[[#This Row],[المُقدر]]-TBL_Ceremony[[#This Row],[الفعلي]]) -> 
B64: مجموع الحفل | C64: =SUBTOTAL(109,TBL_Ceremony[المُقدر]) -> ر.س.‏ 800.00 | D64: =SUBTOTAL(109,TBL_Ceremony[الفعلي]) -> ر.س.‏ 0.00 | E64: =TBL_Ceremony[[#Totals],[المُقدر]]-TBL_Ceremony[[#Totals],[الفعلي]] -> ر.س.‏ 800.00
B67: ثابت | C67: المُقدر | D67: الفعلي | E67: نسبة الفرق
B68: بطاقات "حفظ التاريخ" | C68: ر.س.‏ 50.00 | E68: =IF(OR(TBL_Stationery[[#This Row],[المُقدر]]="",TBL_Stationery[[#This Row],[الفعلي]]=""),"",TBL_Stationery[[#This Row],[المُقدر]]-TBL_Stationery[[#This Row],[الفعلي]]) -> 
B69: الدعوات وطلبات الاستجابة | C69: ر.س.‏ 100.00 | E69: =IF(OR(TBL_Stationery[[#This Row],[المُقدر]]="",TBL_Stationery[[#This Row],[الفعلي]]=""),"",TBL_Stationery[[#This Row],[المُقدر]]-TBL_Stationery[[#This Row],[الفعلي]]) -> 
B70: برنامج الحفل | C70: ر.س.‏ 50.00 | E70: =IF(OR(TBL_Stationery[[#This Row],[المُقدر]]="",TBL_Stationery[[#This Row],[الفعلي]]=""),"",TBL_Stationery[[#This Row],[المُقدر]]-TBL_Stationery[[#This Row],[الفعلي]]) -> 
B71: بطاقات الجلوس والمكان | C71: ر.س.‏ 50.00 | E71: =IF(OR(TBL_Stationery[[#This Row],[المُقدر]]="",TBL_Stationery[[#This Row],[الفعلي]]=""),"",TBL_Stationery[[#This Row],[المُقدر]]-TBL_Stationery[[#This Row],[الفعلي]]) -> 
B72: بطاقات القوائم | C72: ر.س.‏ 50.00 | E72: =IF(OR(TBL_Stationery[[#This Row],[المُقدر]]="",TBL_Stationery[[#This Row],[الفعلي]]=""),"",TBL_Stationery[[#This Row],[المُقدر]]-TBL_Stationery[[#This Row],[الفعلي]]) -> 
B73: ملاحظات الشكر | C73: ر.س.‏ 50.00 | E73: =IF(OR(TBL_Stationery[[#This Row],[المُقدر]]="",TBL_Stationery[[#This Row],[الفعلي]]=""),"",TBL_Stationery[[#This Row],[المُقدر]]-TBL_Stationery[[#This Row],[الفعلي]]) -> 
B74: رسوم البريد | C74: ر.س.‏ 50.00 | E74: =IF(OR(TBL_Stationery[[#This Row],[المُقدر]]="",TBL_Stationery[[#This Row],[الفعلي]]=""),"",TBL_Stationery[[#This Row],[المُقدر]]-TBL_Stationery[[#This Row],[الفعلي]]) -> 
B75: مصاريف متنوعة | C75: ر.س.‏ 100.00 | E75: =IF(OR(TBL_Stationery[[#This Row],[المُقدر]]="",TBL_Stationery[[#This Row],[الفعلي]]=""),"",TBL_Stationery[[#This Row],[المُقدر]]-TBL_Stationery[[#This Row],[الفعلي]]) -> 
B76: المجموع الكلي للقرطاسية | C76: =SUBTOTAL(109,TBL_Stationery[المُقدر]) -> ر.س.‏ 500.00 | D76: =SUBTOTAL(109,TBL_Stationery[الفعلي]) -> ر.س.‏ 0.00 | E76: =TBL_Stationery[[#Totals],[المُقدر]]-TBL_Stationery[[#Totals],[الفعلي]] -> ر.س.‏ 500.00
B79: خواتم الزواج | C79: المُقدر | D79: الفعلي | E79: نسبة الفرق
B80: خواتم الزواج | C80: ر.س.‏ 1,000.00 | E80: =IF(OR(TBL_WeddingRings[[#This Row],[المُقدر]]="",TBL_WeddingRings[[#This Row],[الفعلي]]=""),"",TBL_WeddingRings[[#This Row],[المُقدر]]-TBL_WeddingRings[[#This Row],[الفعلي]]) -> 
B81: ملحقات الخاتم | C81: ر.س.‏ 100.00 | E81: =IF(OR(TBL_WeddingRings[[#This Row],[المُقدر]]="",TBL_WeddingRings[[#This Row],[الفعلي]]=""),"",TBL_WeddingRings[[#This Row],[المُقدر]]-TBL_WeddingRings[[#This Row],[الفعلي]]) -> 
B82: مجموع خواتم الزفاف | C82: =SUBTOTAL(109,TBL_WeddingRings[المُقدر]) -> ر.س.‏ 1,100.00 | D82: =SUBTOTAL(109,TBL_WeddingRings[الفعلي]) -> ر.س.‏ 0.00 | E82: =TBL_WeddingRings[[#Totals],[المُقدر]]-TBL_WeddingRings[[#Totals],[الفعلي]] -> ر.س.‏ 1,100.00
B85: وسيلة النقل | C85: المُقدر | D85: الفعلي | E85: نسبة الفرق
B86: إيجار السيارة الرئيسية | C86: ر.س.‏ 100.00 | E86: =IF(OR(TBL_Transportation[[#This Row],[المُقدر]]="",TBL_Transportation[[#This Row],[الفعلي]]=""),"",TBL_Transportation[[#This Row],[المُقدر]]-TBL_Transportation[[#This Row],[الفعلي]]) -> 
B87: إيجار سيارات الضيوف | C87: ر.س.‏ 100.00 | E87: =IF(OR(TBL_Transportation[[#This Row],[المُقدر]]="",TBL_Transportation[[#This Row],[الفعلي]]=""),"",TBL_Transportation[[#This Row],[المُقدر]]-TBL_Transportation[[#This Row],[الفعلي]]) -> 
B88: وسائل النقل للضيوف خارج المدينة | C88: ر.س.‏ 100.00 | E88: =IF(OR(TBL_Transportation[[#This Row],[المُقدر]]="",TBL_Transportation[[#This Row],[الفعلي]]=""),"",TBL_Transportation[[#This Row],[المُقدر]]-TBL_Transportation[[#This Row],[الفعلي]]) -> 
B89: خدمة صف السيارات | C89: ر.س.‏ 50.00 | E89: =IF(OR(TBL_Transportation[[#This Row],[المُقدر]]="",TBL_Transportation[[#This Row],[الفعلي]]=""),"",TBL_Transportation[[#This Row],[المُقدر]]-TBL_Transportation[[#This Row],[الفعلي]]) -> 
B90: مصاريف متنوعة | C90: ر.س.‏ 100.00 | E90: =IF(OR(TBL_Transportation[[#This Row],[المُقدر]]="",TBL_Transportation[[#This Row],[الفعلي]]=""),"",TBL_Transportation[[#This Row],[المُقدر]]-TBL_Transportation[[#This Row],[الفعلي]]) -> 
B91: إجمالي النقل | C91: =SUBTOTAL(109,TBL_Transportation[المُقدر]) -> ر.س.‏ 450.00 | D91: =SUBTOTAL(109,TBL_Transportation[الفعلي]) -> ر.س.‏ 0.00 | E91: =TBL_Transportation[[#Totals],[المُقدر]]-TBL_Transportation[[#Totals],[الفعلي]] -> ر.س.‏ 450.00
